fUSD/lending_fUSD_20240209
["ID","MTS","AMOUNT","RATE_DAILY","PERIOD"]
[313608460,1707475831549,-358.52677477,0.00023001,2]
[313608461,1707475831578,-19965.39237425,0.00023001,2]
[313608462,1707475831598,-293.29706828,0.00023001,2]
[313608463,1707475831617,-304.92360692,0.00023005,2]
[313608464,1707475831637,-156.09398112,0.00023005,2]
[313608465,1707475831655,-285.39929887,0.00023005,2]
[313608466,1707475831675,-393.43817883,0.00023005,2]
[313608467,1707475831695,-987.10591515,0.00023005,2]
[313608468,1707475831720,-2862.08991888,0.00023005,2]
[313608469,1707475831741,-3344.90563666,0.00023005,2]
[313608472,1707475831761,-257.95837551,0.00023005,2]
[313608474,1707475831781,-400.0,0.00023005,2]
[313608475,1707475831807,-2787.49837259,0.00023005,2]
[313608476,1707475831826,-978.76542267,0.00023005,2]
[313608477,1707475831847,-1137.21104136,0.00023006,2]
[313608478,1707475831866,-176.68735012,0.00023006,2]
[313608479,1707475831884,-500.0,0.00023014,2]
[313608480,1707475831903,-276.63503797,0.00023048,2]
[313608481,1707475831922,-6074.82,0.00023066,2]
[313608482,1707475831942,-647.352,0.00023067,2]
[313608483,1707475831961,-3587.21,0.00023067,2]
[313608484,1707475831981,-3242.43,0.0002308,2]
[313608485,1707475831999,-2606.395889,0.00023082,2]
[313608486,1707475832018,-499.99,0.00023082,2]
[313608487,1707475832039,-166.29,0.00023086,2]
[313608488,1707475832057,-157.88,0.00023234,2]
[313608489,1707475832076,-159.72869695,0.00023361,2]
[313608490,1707475832095,-157.88,0.00023631,2]
[313608491,1707475832114,-589.95,0.0002372,2]
[313608492,1707475832133,-234.88931985,0.00023722,2]
[313608493,1707475832152,-725.54404605,0.00023726,2]
[313608494,1707475832170,-159.72869695,0.00023779,2]
[313608495,1707475832189,-155.49024871,0.00023847,2]
[313608496,1707475832207,-1583.35333071,0.00023867,2]
[313608497,1707475832225,-163.98550413,0.00023867,2]
[313608498,1707475832243,-170.60712626,0.00023957,2]
[313608499,1707475832261,-156.07573466,0.00023962,2]
[313608500,1707475832279,-2398.76148284,0.00023962,2]
[313608501,1707475832299,-2030.04115889,0.00023962,2]
[313608502,1707475832317,-544.27967836,0.00023962,2]
[313608503,1707475832334,-384.93500962,0.00023962,2]
[313608504,1707475832352,-608.31990071,0.00023962,2]
[313608505,1707475832369,-318.6317405,0.00023962,2]
[313608506,1707475832387,-192.70278043,0.00023962,2]
[313608507,1707475832405,-462.17425163,0.00023962,2]
[313608508,1707475832421,-177.07981277,0.00023962,2]
[313608509,1707475832438,-407.59782112,0.00023962,2]
[313608510,1707475832453,-4281.87774192,0.00023962,2]
[313608511,1707475832471,-790.87281783,0.00023962,2]
[313608512,1707475832487,-557.22431933,0.00023962,2]
[313608513,1707475832504,-199.29640762,0.00023963,2]
[313608514,1707475832520,-7438.65818992,0.00023964,2]
[313608515,1707475832530,-15902.7433957,0.00023964,2]
[313608516,1707475832543,-226.47050172,0.00023964,2]
[313608517,1707475832553,-294.47911097,0.00023964,2]
[313608518,1707475832562,-526.68731864,0.00023964,2]
[313608519,1707475832572,-298.00316852,0.00023964,2]
[313608520,1707475832584,-11610.27814989,0.00023964,2]
[313608521,1707475832594,-155.70566708,0.00023964,2]
[313608522,1707475832615,-1056.9901447,0.00023964,2]
[313608523,1707475832626,-3616.99735261,0.00023964,2]
[313608524,1707475832959,-156.40478382,0.00023964,2]
[313608525,1707475832992,-14252.51119113,0.00023964,2]
[313608526,1707475833011,-254.27562907,0.00023964,2]
[313608527,1707475833020,-500.0,0.00023965,2]
[313608528,1707475833029,-494.23729759,0.00023965,2]
[313608529,1707475833039,-500.0,0.00023965,2]
[313608530,1707475833048,-500.0,0.00023965,2]
[313608531,1707475833056,-500.0,0.00023965,2]
[313608532,1707475833065,-500.0,0.00023965,2]
[313608533,1707475833075,-500.0,0.00023965,2]
[313608534,1707475833084,-500.0,0.00023965,2]
[313608535,1707475833093,-500.0,0.00023965,2]
[313608536,1707475833102,-500.0,0.00023965,2]
[313608537,1707475833111,-550.0,0.00023965,2]
[313608538,1707475833121,-500.0,0.00023965,2]
[313608539,1707475833131,-500.0,0.00023965,2]
[313608540,1707475833140,-500.0,0.00023965,2]
[313608541,1707475833150,-500.0,0.00023965,2]
[313608542,1707475833159,-500.0,0.00023965,2]
[313608543,1707475833169,-500.0,0.00023965,2]
[313608544,1707475833179,-500.0,0.00023965,2]
[313608545,1707475833189,-500.0,0.00023965,2]
[313608546,1707475833198,-500.0,0.00023965,2]
[313608547,1707475833207,-500.0,0.00023965,2]
[313608548,1707475833216,-500.0,0.00023965,2]
[313608549,1707475833225,-500.0,0.00023965,2]
[313608550,1707475833235,-500.0,0.00023965,2]
[313608551,1707475833244,-500.0,0.00023965,2]
[313608552,1707475833254,-500.0,0.00023965,2]
[313608553,1707475833264,-500.0,0.00023965,2]
[313608554,1707475833273,-131627.01927775,0.00023966,2]
[313608555,1707475833290,-182441.42759431,0.00023966,2]
[313608556,1707475833301,-140262.90778386,0.00023966,2]
[313608557,1707475833311,-155.534516,0.00023967,2]
[313608558,1707475833320,-400.80124939,0.00023967,2]
[313608559,1707475833329,-157.96024955,0.00023967,2]
[313608560,1707475833338,-665.24525712,0.00023967,2]
[313608561,1707475833347,-216.1197047,0.00023967,2]
[313608562,1707475833357,-155.80535637,0.00023967,2]
[313608563,1707475833366,-199.1943748,0.00023967,2]
[313608564,1707475833375,-4718.8773215,0.00023967,2]
[313608565,1707475833384,-231.85811736,0.00023967,2]
[313608566,1707475833393,-155.58740045,0.00023967,2]
[313608567,1707475833402,-624.16165234,0.00023967,2]
[313608568,1707475833412,-155.78404574,0.00023967,2]
[313608569,1707475833421,-560.53077789,0.00023967,2]
[313608570,1707475833432,-560.28091609,0.00023967,2]
[313608571,1707475833443,-257.98094851,0.00023967,2]
[313608572,1707475833452,-208.07914911,0.00023967,2]
[313608573,1707475833461,-179.81409361,0.00023967,2]
[313608574,1707475833470,-198.56960649,0.00023967,2]
[313608575,1707475833480,-295.00053781,0.00023967,2]
[313608576,1707475833489,-288.7069672,0.00023967,2]
[313608577,1707475833499,-345.76879495,0.00023967,2]
[313608578,1707475833508,-156.37632974,0.00023967,2]
[313608579,1707475833517,-390.61105387,0.00023967,2]
[313608580,1707475833526,-156.03689591,0.00023967,2]
[313608581,1707475833535,-1041.45652443,0.00023967,2]
[313608582,1707475833545,-156.59384135,0.00023968,2]
[313608583,1707475833554,-155.77506283,0.00023968,2]
[313608584,1707475833563,-155.0,0.00023968,2]
[313608585,1707475833572,-3326.0,0.00024,2]
[313608586,1707475833581,-157.88,0.00024028,2]
[313608587,1707475833591,-7335.91242079,0.00024092,2]
[313608588,1707475833603,-10722.71982707,0.00024092,2]
[313608589,1707475833612,-15944.52594591,0.00024095,2]
[313608590,1707475833621,-515.28,0.00024095,2]
[313608591,1707475833631,-15055.0,0.000241,2]
[313608592,1707475833640,-403.76,0.0002411,2]
[313608593,1707475833649,-159.72869695,0.00024197,2]
[313608594,1707475833658,-167.0,0.00024298,2]
[313608595,1707475833669,-3632.91544763,0.00024384,2]
[313608596,1707475833702,-373.90204875,0.00024384,2]
[313608597,1707475833715,-942.09250362,0.00024384,2]
[313608598,1707475833724,-1387.26,0.00024384,2]
[313608599,1707475833733,-299.15349638,0.00024464,2]
[313608600,1707475833749,-161.03650362,0.00024464,2]
[313608601,1707475833759,-159.72869695,0.00024615,2]
[313608602,1707475833768,-250.0,0.00024658,2]
[313608603,1707475833778,-350.0,0.00025,3]
[313608604,1707475833789,-159.72869695,0.00025033,2]
[313608605,1707475833798,-206.07,0.00025231,2]
[313608606,1707475833807,-210.0,0.000253,2]
[313608607,1707475833816,-159.72869695,0.00025451,2]
[313608608,1707475833826,-260.69448681,0.00025519,2]
[313608609,1707475833838,-356.26551319,0.00025519,2]
[313608610,1707475833847,-1583.3533307,0.00025727,2]
[313608611,1707475833856,-159.72869695,0.00025869,2]
[313608612,1707475833866,-150.0,0.00026079,2]
[313608613,1707475833875,-460.19,0.00026108,2]
[313608614,1707475833884,-159.72869695,0.00026287,2]
[313608615,1707475833893,-159.72869695,0.00026705,2]
[313608616,1707475833902,-174.23415072,0.00027,5]
[313608617,1707475833911,-400.0,0.00027,3]
[313608618,1707475833920,-159.72869695,0.00027124,2]
[313608619,1707475833930,-167.94,0.00027369,2]
[313608620,1707475833940,-206.07,0.00027495,2]
[313608621,1707475833949,-159.72869695,0.00027542,2]
[313608622,1707475833958,-1583.3533307,0.00027587,3]
[313608623,1707475833968,-460.19,0.00027752,2]
[313608624,1707475833978,-293.0,0.0002783,2]
[313608625,1707475833987,-159.72869695,0.0002796,2]
[313608626,1707475833996,-132552.12115008,0.00028,2]
[313608627,1707475834006,-544.05912263,0.00028145,2]
[313608628,1707475834015,-383.04,0.00028245,2]
[313608629,1707475834024,-616.96,0.00028354,2]
[313608630,1707475834033,-159.72869695,0.00028378,2]
[313608631,1707475834044,-159.72869695,0.00028796,2]
[313608632,1707475834053,-450.0,0.00029,3]
[313608633,1707475834062,-19999.99,0.00029009,2]
[313608634,1707475834072,-173.94,0.00029053,120]
[313608635,1707475834081,-1000.0,0.00029113,2]
[313608636,1707475834090,-159.72869695,0.00029214,2]
[313608637,1707475834099,-163.98550412,0.00029384,2]
[313608638,1707475834108,-460.19,0.00029396,2]
[313608639,1707475834117,-1583.3533307,0.00029447,4]
[313608640,1707475834126,-159.72869695,0.00029632,2]
[313608641,1707475834136,-800.0,0.00029671,2]
[313608642,1707475834145,-150.0,0.00029699,2]
[313608643,1707475834155,-206.07,0.00029759,2]
[313608644,1707475834164,-5800.19529632,0.000298,2]
[313608645,1707475834173,-155.93305506,0.00029836,2]
[313608646,1707475834182,-173.58104472,0.00029873,2]
[313608647,1707475834192,-331.6728,0.00029899,2]
[313608648,1707475834201,-7244.7015,0.00029899,2]
[313608649,1707475834210,-9693.2122,0.000299,2]
[313608650,1707475834219,-10588.4643,0.000299,2]
[313608651,1707475834229,-64468.15759241,0.000299,2]
[313608652,1707475834246,-319.24149127,0.000299,2]
[313608653,1707475834259,-357.46371413,0.000299,2]
[313608659,1707475839116,-1042.4924,0.00023963,4]
[313608660,1707475839164,-2652.18145054,0.00023963,4]
[313608661,1707475839173,-198.7581649,0.00029,2]
[313608662,1707475839259,-439.74839469,0.00029,2]
[313608670,1707475840077,-324.83345453,0.00029,2]
[313608691,1707475842531,-407.75428958,0.00028999,2]
[313608692,1707475842541,-3036.65998588,0.00029,2]
[313608694,1707475842551,-161.27842766,0.00029899,2]
[313608696,1707475842560,-77721.89460424,0.000299,2]
[313608700,1707475842597,-3467.71592738,0.000299,2]
[313608772,1707475845466,-384.34893729,0.000299,2]
[313608773,1707475845478,-4673.0274,0.000299,2]
[313608774,1707475845524,-4300.21688931,0.000299,2]
[313608776,1707475850827,2606.395889,0.00023,2]
[313608777,1707475868808,2161.26245347,0.00023,2]
[313608778,1707475869871,119301.17769924,0.00023,2]
[313608782,1707476208502,205.44,0.00022471,2]
[313608783,1707476224507,150.0,0.00022,2]
[313608784,1707476367666,176.97,0.00022424,2]
[313608785,1707476390435,172.87,0.000205,2]
[313608786,1707476407810,246.79,0.00022194,2]
[313608787,1707476449955,354.14,0.00022,2]
[313608788,1707476454595,516.08,0.00022,2]
[313608790,1707476635667,365.78086249,0.000225,2]
[313608791,1707476639916,612.1355,0.0002241,14]
[313608792,1707476641693,161.27842766,0.000225,2]
[313608793,1707476643448,290.3213485,0.000225,2]
[313608794,1707476667441,3159.13814169,0.000225,2]
[313608795,1707476667674,534.43763155,0.000225,2]
[313608796,1707476716348,161.27842766,0.000225,2]
[313608797,1707476741241,212.73792894,0.000225,2]
[313608798,1707476742919,234.32954791,0.000225,2]
[313608799,1707476823705,219.34,0.00022375,2]
[313608800,1707476829590,176.97,0.00022448,2]
[313608801,1707476859358,164.22,0.00021222,2]
[313608802,1707476886159,504.0,0.00027,30]
[313608803,1707476887778,224.05,0.00023493,10]
[313608861,1707477032303,-212.73792894,0.00022609,2]
[313608862,1707477032312,-154.99939604,0.00022611,2]
[313608863,1707477032322,-154.99939598,0.00022637,2]
[313608864,1707477032332,-145.85939506,0.00022664,2]
[313608866,1707477034056,-161.27842766,0.00022608,2]
[313608867,1707477034066,-9.14000092,0.00022664,2]
[313608868,1707477034075,-154.99939598,0.0002269,2]
[313608869,1707477034085,-577.81647544,0.00022705,2]
[313608870,1707477034097,-259.87523753,0.00022705,2]
[313608871,1707477034126,-717.54482243,0.00022705,2]
[313608872,1707477034140,-1215.70125637,0.00022705,2]
[313608873,1707477034152,-1886.55357346,0.00022705,2]
[313608874,1707477034161,-770.16392171,0.00022711,2]
[313608875,1707477034172,-526.28081142,0.00022716,2]
[313608876,1707477034182,-154.99939598,0.00022716,2]
[313608877,1707477034192,-10670.80229743,0.00022721,2]
[313608919,1707477039536,-2813.07492,0.00022721,2]
[313608920,1707477039548,-2850.93961544,0.00022721,2]
[313608921,1707477039594,-4420.66269841,0.00022721,2]
[313608922,1707477039653,-1067.13680831,0.00022721,2]
[313608927,1707477040905,-60864.37465559,0.00022721,2]
[313608928,1707477040914,-254.11407784,0.00022722,2]
[313608929,1707477040924,-9999.99,0.00022722,2]
[313608930,1707477040933,-154.99939598,0.00022742,2]
[313608931,1707477040942,-499.99,0.00022764,2]
[313608932,1707477040951,-154.99939598,0.00022769,2]
[313608933,1707477040961,-154.99939598,0.00022795,2]
[313608934,1707477040970,-1041.5252668,0.0002282,2]
[313608935,1707477040980,-15847.31,0.0002282,2]
[313608936,1707477040989,-154.99939598,0.00022821,2]
[313608937,1707477040998,-154.99939598,0.00022847,2]
[313608938,1707477041008,-154.99939598,0.00022874,2]
[313608939,1707477041017,-1107.891,0.00022899,2]
[313608940,1707477041026,-173.70389732,0.000229,2]
[313608941,1707477041035,-164.60010223,0.000229,2]
[313608942,1707477041044,-5690.85955634,0.000229,2]
[313608943,1707477041054,-21533.5139,0.000229,2]
[313608944,1707477041063,-1500.0,0.000229,2]
[313608945,1707477041072,-163.98550412,0.000229,2]
[313608946,1707477041081,-173.35622672,0.000229,2]
[313608947,1707477041090,-299.96455073,0.000229,2]
[313608948,1707477041100,-252.38070885,0.000229,2]
[313608949,1707477041109,-2284.45775978,0.000229,2]
[313608950,1707477041119,-154.99939598,0.000229,2]
[313608951,1707477041129,-1178.99893102,0.000229,2]
[313608952,1707477041138,-1616.22,0.00022914,2]
[313608953,1707477041147,-187.345675,0.00022998,2]
[313608954,1707477041157,-155.0,0.00022998,2]
[313608955,1707477041166,-220.42371356,0.00022998,2]
[313608956,1707477041176,-257.85453582,0.00022998,2]
[313608957,1707477041185,-3149.35956198,0.00022998,2]
[313608958,1707477041195,-183.10719088,0.00022998,2]
[313608959,1707477041205,-234.87051219,0.00022998,2]
[313608960,1707477041214,-2090.7291501,0.00022998,2]
[313608961,1707477041224,-1680.6634743,0.00022998,2]
[313608963,1707477041233,-155.91635596,0.00022998,2]
[313608964,1707477041243,-384.20945686,0.00022999,2]
[313608965,1707477041253,-500.0,0.00022999,2]
[313608966,1707477041263,-500.0,0.00022999,2]
[313608968,1707477041272,-450.0,0.00022999,2]
[313608969,1707477041281,-533.05999479,0.00022999,2]
[313608971,1707477041294,-500.0,0.00022999,2]
[313608972,1707477041303,-582.32084792,0.00022999,2]
[313608973,1707477041312,-199.24614525,0.00022999,2]
[313608974,1707477041321,-412.2342362,0.00022999,2]
[313608975,1707477041331,-200.0,0.00022999,2]
[313608976,1707477041340,-150.0,0.00022999,2]
[313608977,1707477041349,-150.0,0.00022999,2]
[313608978,1707477041358,-3009769.78288093,0.00023,2]
[313608979,1707477041368,-1538093.39916462,0.00023,2]
[313608980,1707477041377,-500.0,0.0002332,2]
[313608981,1707477041386,-164.22,0.00023486,2]
[313608982,1707477041395,-802.56,0.00023493,2]
[313608983,1707477041404,-800.0,0.00023589,2]
[313608984,1707477041413,-5690.85955629,0.00023626,2]
[313608985,1707477041424,-3240.0,0.000241,2]
[313608986,1707477041433,-15001.0,0.000241,2]
[313608987,1707477041442,-5690.85955629,0.00024352,2]
[313608988,1707477041451,-4266.76,0.00024384,2]
[313608989,1707477041461,-1156.05,0.00024384,2]
[313608990,1707477041470,-250.0,0.00024658,2]
[313608991,1707477041479,-246.79,0.00024968,2]
[313608992,1707477041488,-5690.85955629,0.00025078,2]
[313608993,1707477041498,-176.97,0.00025187,2]
[313608994,1707477041506,-187.62,0.00025408,2]
[313608995,1707477041515,-164.22,0.0002575,2]
[313608996,1707477041525,-5690.85955629,0.00025804,2]
[313608997,1707477041534,-150.0,0.00026079,2]
[313608998,1707477041543,-802.56,0.00026429,2]
[313608999,1707477041552,-5690.85955629,0.0002653,2]
[313609000,1707477041561,-299.96455072,0.000269,2]
[313609001,1707477041572,-252.38070884,0.000269,2]
[313609002,1707477041581,-2284.45775977,0.000269,2]
[313609003,1707477041590,-1178.99893101,0.000269,2]
[313609004,1707477041599,-205.44,0.00026966,2]
[313609005,1707477041608,-418.21422373,0.00027,2]
[313609006,1707477041617,-5690.85955629,0.00027256,2]
[313609007,1707477041627,-246.79,0.00027743,2]
[313609008,1707477041636,-176.97,0.00027927,2]
[313609009,1707477041645,-5690.85955629,0.00027982,2]
[313609010,1707477041655,-164.22,0.00028014,2]
[313609011,1707477041664,-5690.85955629,0.00028708,2]
[313609012,1707477041676,-7999.99,0.00029366,6]
[313609013,1707477041685,-802.56,0.00029366,2]
[313609014,1707477041694,-5690.85955629,0.00029434,2]
[313609015,1707477041703,-12045.43932787,0.0002961,2]
[313609016,1707477041712,-150.0,0.00029746,2]
[313609017,1707477041721,-22135.54681019,0.0002984,2]
[313609018,1707477041730,-1351.26740038,0.00029899,2]
[313609019,1707477041739,-342.9535079,0.00029899,2]
[313609020,1707477041748,-7089.97136152,0.00029899,2]
[313609021,1707477041757,-8602.14236544,0.00029899,2]
[313609022,1707477041767,-699.93542957,0.00029899,2]
[313609023,1707477041776,-2000.0,0.000299,2]
[313609024,1707477041785,-200.0,0.000299,2]
[313609025,1707477041794,-4000.0,0.000299,2]
[313609026,1707477041803,-2530.56712972,0.00029997,2]
[313609027,1707477041812,-414.34514486,0.0003,2]
[313609028,1707477041821,-502.23342892,0.0003,2]
[313609029,1707477041831,-8900.0,0.0003,5]
[313609030,1707477041839,-9685.75010057,0.0003,2]
[313609031,1707477041849,-150.0,0.0003,2]
[313609032,1707477041858,-3000.0,0.0003,2]
[313609033,1707477041867,-154.45,0.00030137,2]
[313609034,1707477041876,-5690.85955629,0.0003016,2]
[313609035,1707477041885,-1999.9999999,0.00030199,2]
[313609036,1707477041895,-200.0,0.00030199,2]
[313609037,1707477041904,-164.22,0.00030278,2]
[313609038,1707477041913,-200.0,0.00030501,2]
[313609039,1707477041923,-246.79,0.00030517,2]
[313609040,1707477041932,-176.97,0.00030667,2]
[313609041,1707477041941,-152.0556,0.0003067,2]
[313609042,1707477041950,-3000.0,0.0003073,2]
[313609043,1707477041959,-154.45,0.00030782,2]
[313609044,1707477041969,-705.8706,0.00030876,2]
[313609045,1707477041978,-5690.85955629,0.00030886,2]
[313609046,1707477041988,-299.96455072,0.000309,2]
[313609047,1707477041997,-252.38070884,0.000309,2]
[313609048,1707477042006,-2284.45775977,0.000309,2]
[313609049,1707477042015,-1178.99893101,0.000309,2]
[313609050,1707477042024,-162.74596975,0.00030947,2]
[313609051,1707477042034,-223577.60911306,0.00030972,2]
[313609052,1707477042043,-12924.56072042,0.00030972,2]
[313609053,1707477042052,-7456.4042796,0.00030972,2]
[313609054,1707477042062,-155.0,0.00030974,4]
[313609055,1707477042071,-90077.30824633,0.00030974,2]
[313609056,1707477042080,-1444.4099148,0.00030974,4]
[313609057,1707477042089,-530.42485167,0.00030974,4]
[313609058,1707477042099,-639.80038613,0.00030974,4]
[313609059,1707477042108,-4964.05315812,0.00030975,4]
[313609060,1707477042117,-176.41076475,0.00030975,4]
[313609062,1707477042126,-173.00578432,0.00030975,4]
[313609063,1707477042136,-871.47453039,0.00030976,120]
[313609064,1707477042146,-290.51320653,0.00030976,4]
[313609065,1707477042155,-160.76583708,0.00030976,4]
[313609066,1707477042166,-409.29836769,0.00030976,4]
[313609067,1707477042176,-157.01634121,0.00030976,4]
[313609068,1707477042185,-216.3929506,0.00030976,4]
[313609069,1707477042194,-155.26978808,0.00030976,4]
[313609070,1707477042203,-155.32524818,0.00030976,4]
[313609071,1707477042361,-203.13377714,0.00030976,4]
[313609072,1707477042372,-354.87715265,0.00030976,2]
[313609073,1707477042383,-803.32188729,0.00030976,4]
[313609074,1707477042392,-288.82931725,0.00030976,4]
[313609075,1707477042401,-413.15022701,0.00030976,2]
[313609076,1707477042410,-1013.26547405,0.00030976,2]
[313609077,1707477042419,-173102.5399489,0.00030976,4]
[313609078,1707477042428,-158.13821636,0.00030977,4]
[313609079,1707477042437,-199.51723664,0.00030978,4]
[313609080,1707477042446,-155.69856495,0.00030978,4]
[313609081,1707477042455,-320.37248572,0.00030978,2]
[313609082,1707477042464,-156.05498379,0.00030978,4]
[313609084,1707477042473,-313.57682683,0.00030979,2]
[313609085,1707477042482,-171.38194321,0.00030979,2]
[313609086,1707477042491,-225.43379714,0.00030979,2]
[313609087,1707477042500,-1076012.06581217,0.0003098,2]
[313609088,1707477042509,-354677.16450586,0.0003098,2]
[313609089,1707477043080,-900.71,0.0003098,2]
[313609153,1707477044981,-544.05912263,0.000229,2]
[313609155,1707477044991,-220.2573698,0.00022999,2]
[313609156,1707477045001,-3827.42375055,0.0003098,2]
[313609161,1707477045039,-9167.61499321,0.0003098,2]
[313609163,1707477045050,-4687.4562,0.0003098,2]
[313609187,1707477045623,-915.0,0.0003098,2]
[313609207,1707477045786,-1624.14070196,0.0003098,2]
[313609232,1707477046307,-294.0923988,0.0003098,2]
[313609233,1707477046319,-280.248,0.0003098,2]
[313609234,1707477046331,-1167.375,0.0003098,2]
[313609235,1707477046347,-14025.3726,0.0003098,2]
[313609236,1707477046385,-417.96360681,0.0003098,2]
[313609308,1707478241103,-161.27842766,0.00022877,2]
[313609309,1707478241113,-248.23589458,0.00022878,2]
[313609310,1707478241122,-7819.97787936,0.00022878,2]
[313609311,1707478241132,-5053.83253415,0.00022879,2]
[313609312,1707478241142,-1377.92965017,0.00022879,2]
[313609313,1707478241151,-152.11313572,0.00022892,2]
[313609314,1707478241161,-13243.03502546,0.00022993,2]
[313609315,1707478241171,-244.99596101,0.00022998,2]
[313609316,1707478241180,-152.11313562,0.00023618,2]
[313609317,1707478241190,-152.11313562,0.00024344,2]
[313609318,1707478241199,-499.99,0.00024344,2]
[313609319,1707478241209,-2800.35,0.00024344,2]
[313609320,1707478241220,-350.0,0.00025,3]
[313609321,1707478241230,-152.11313562,0.00025071,2]
[313609322,1707478241239,-152.11313562,0.00025797,2]
[313609323,1707478241249,-1006.43890897,0.00026291,2]
[313609324,1707478241258,-152.11313562,0.00026523,2]
[313609325,1707478241268,-185.98,0.00026665,2]
[313609326,1707478241277,-278.10084856,0.00026847,2]
[313609327,1707478241286,-400.0,0.00027,3]
[313609328,1707478241295,-152.11313562,0.00027249,2]
[313609329,1707478241305,-3580.93,0.00027483,2]
[313609330,1707478241314,-168.06,0.00027483,2]
[313609331,1707478241323,-286.39,0.00027524,3]
[313609332,1707478241333,-250.0,0.00027541,2]
[313609333,1707478241342,-250.0,0.00027575,2]
[313609335,1707478241351,-330.54,0.00027588,2]
[313609336,1707478241360,-150.0,0.00027626,2]
[313609337,1707478241370,-250.0,0.00027847,2]
[313609338,1707478241379,-152.11313562,0.00027975,2]
[313609339,1707478241389,-150.64,0.0002806,2]
[313609340,1707478241398,-2000.0,0.0002814,2]
[313609342,1707478241408,-500.0,0.00028219,2]
[313609344,1707478241419,-207.0,0.00028259,2]
[313609346,1707478241429,-152.61,0.00028268,2]
[313609348,1707478241438,-163.56,0.00028311,2]
[313609350,1707478241448,-152.61,0.00028367,2]
[313609352,1707478241457,-205.25,0.00028379,2]
[313609354,1707478241469,-23900.0,0.0002845,2]
[313609356,1707478241479,-152.61,0.00028465,2]
[313609357,1707478241490,-152.61,0.00028563,2]
[313609360,1707478241500,-196.95,0.00028583,2]
[313609362,1707478241511,-152.61,0.00028661,2]
[313609363,1707478241521,-152.11313562,0.00028701,2]
[313609365,1707478241531,-152.61,0.00028759,2]
[313609368,1707478241542,-152.61,0.00028858,2]
[313609369,1707478241551,-185.98,0.00028929,2]
[313609372,1707478241561,-152.61,0.00028956,2]
[313609374,1707478241571,-1333.33946825,0.00029,6]
[313609376,1707478241581,-450.0,0.00029,3]
[313609378,1707478241591,-152.61,0.00029054,2]
[313609379,1707478241601,-1000.0,0.00029115,2]
[313609381,1707478241611,-152.61,0.00029152,2]
[313609383,1707478241620,-212.47623472,0.00029212,2]
[313609385,1707478241629,-155.37913647,0.00029212,2]
[313609387,1707478241640,-156.54342645,0.00029212,2]
[313609389,1707478241650,-4509.63271863,0.00029212,2]
[313609392,1707478241662,-295.50469259,0.00029212,2]
[313609394,1707478241672,-361.19477376,0.00029212,2]
[313609396,1707478241681,-155.0,0.00029213,2]
[313609398,1707478241691,-155.0,0.00029213,2]
[313609399,1707478241701,-1003.12,0.00029215,2]
[313609401,1707478241710,-152.61,0.0002925,2]
[313609403,1707478241722,-1000.0,0.00029253,2]
[313609405,1707478241734,-152.61,0.00029348,2]
[313609407,1707478241743,-152.11313562,0.00029428,2]
[313609409,1707478241753,-152.61,0.00029447,2]
[313609411,1707478241764,-152.61,0.00029545,2]
[313609413,1707478241774,-152.61,0.00029643,2]
[313609415,1707478241784,-9219.92048164,0.00029648,2]
[313609417,1707478241793,-284.20923489,0.00029648,2]
[313609419,1707478241802,-581.49674171,0.00029649,2]
[313609421,1707478241812,-152.61,0.00029741,2]
[313609424,1707478241821,-266.3621,0.00029851,2]
[313609426,1707478241831,-41886.2968,0.00029851,2]
[313609428,1707478241840,-3179.05559642,0.00029851,2]
[313609430,1707478241849,-1353.35258587,0.0002988,4]
[313609432,1707478241858,-290.71523709,0.00029949,2]
[313609434,1707478241867,-58149.23952596,0.0002995,2]
[313609436,1707478241876,-243878.69624638,0.00029951,2]
[313609438,1707478241885,-206.8644,0.0002998,2]
[313609440,1707478241894,-875.6893,0.0002998,2]